Workbook

Sheet Instructions
A1: Instructions
A2: North Dakota Economic Analysis Tool
A3: Open Lot vs Confinement Barn
A4: 1
A5: 2023-10-12
A6: Introduction:
A7: This workbook is used for the economic comparison between open lots with a runoff pond and confinement bedded pack or slatted floor roof structures. The values used in the spreadsheet are a reference values as a starting point and data gathered from the site and producer shall be considered in the spreadsheet by the Engineer
A8: A knowledge of ag waste design and NRCS-ND Conservation Practice Standards for ag waste systems is needed to properly use this workbook.
A9: Worksheet Format:
A11: White | B11: Grey | C11: White cells with black lettering and Grey cells are locked and can not be changed by user.
A13: Blue | C13: Blue cells with blue lettering are user inputs.
A15: Red | B15: Triangles | C15: Cells with Red Triangles in the upper right corner have comments or help with data entry.
A17: Input Guidance:
A18: Various research information to uses as guidance when filling in the Input and output tab.
A20: Input and output:
A21: Fill in applicable Blue cells to the project. If a line item does not apply it can be left blank.
A23: Income Statement:
A24: Provides a summary of the data.
A26: Feed Cost per Ton Calculation:
A27: Optional. Used to calculate the ration cost / ton of DM.
A29: Instructions for data input:
A30: The Blue cells are user inputs for entering known values. Most are self explanatory, and many have comments (red triangles) and dropdown boxes included.
A33: Printing - Creates a PDF:
A34: Go to Input and output tab. Scroll to the right until you see: Print Analysis Tool, Left Click on Print Analysis Tool, Window pops up and asks if you want to include the Feed Cost per Ton Calculation, click yes or no, Merge folder pops up, navigate to where you would like the file created, Click OK, Popup window says resulting file was created: Click OK. Navigate on the computer to the location of the file double click on the PDF to open.
A39: Do not use space bar to clear inputs from data entry cells. Use either the "Del" key or "Editing - Clear Contents".
A42: End of Instructions
A50: Spreadsheet based on:
A51: Euken, Russ; Doran, Beth E.; Clark, Christopher A.; Shouse, Shawn C.; Loy, Dan; and Schulz, Lee L., "Beef Feedlot Systems Manual"
A52: (2015). Extension and Outreach Publications. 95.

Sheet Input Guidance
A1: Input Guidance
A4: The information provided was found in various research documents as noted. These values are to be used as guiance for filling in the Input and Output tab when information isn't available from the producer.
A7: Depreciation or years of life
A17: https://aglease101.org/wp-content/uploads/2020/10/NCFMEC-04.pdf
A20: Performance
A21: Table 4. Performance assumptions of yearling steers and steer calves fed in differing facility types1
A38: Table 2. Cattle performance differences for open (OPN), open with shelter (OS), and monoslope confinement (MON) housing system2
A46: Labor
A47: Table 13. Hours of Labor Across sysetems using average assumptions1
A64: Table 3. Amount of variale inputs for open (OPN), open with shelter (OS) and monolsope confinement(MON) housing systems2
A76: Nutrients
A78: Table 6 Estimated nutrient concentration per ton or per 1000 gallon1
A92: Machinery Operatation and Ownership
A93: Machinery Operation and ownership Costs - Refer to Estimating Farm Machinery Costs - Iowa State University Extension and Outreach
A94: Est Farm Machinery Costs (iastate.edu)
A101: 1 Euken, Russ; Doran, Beth E.; Clark, Christopher A.; Shouse, Shawn C.; Loy, Dan; and Schulz, Lee L., "Beef Feedlot Systems Manual"
A102: (2015). Extension and Outreach Publications. 95.
A103: 2 Mrozinski, J.M.; Pritchard, R.H.; Holland, B.P.; and Warmann, G.W., "Cost Analysis of Cattle Feedlot Designs" (2012). South Dakota

Sheet Input and output
E1: NATURAL RESOURCES CONSERVATION SERVICE OPEN LOT VS CONFINEMENT BARN ECONOMIC ANALYSIS TOOL | M1: North Dakota | Q1: NATURAL RESOURCES CONSERVATION SERVICE OPEN LOT VS CONFINEMENT BARN ECONOMIC ANALYSIS TOOL | W1: North Dakota
M2: 2023-10-12 | W2: =M2 -> 2023-10-12
M3: Version 1.0 | W3: =M3 -> Version 1.0
M4: Page 1 of 3 | W4: Page 2 of 3
A5: Producer: | E5: Field Office: | I5: FACILITY DESCRIPTION | N5: Producer: | O5: =IF(Producer="","",Producer) ->  | R5: FACILITY DESCRIPTION
A6: Legal Desc: | E6: Details: | I6: Open lot | K6: Confinement | M6: Confinement | N6: Legal Desc: | O6: =IF(Legal="","",Legal) ->  | R6: Open lot | T6: Confinement | V6: Confinement
A7: Completed by: | E7: Date: | I7: Runoff Pond | K7: Bedded | M7: Slatted | N7: Field Office: | O7: =IF(FO="","",FO) ->  | R7: Runoff Pond | T7: Bedded | V7: Slatted
G8: Number of head | I8: 600 | K8: 600 | M8: 600 | P8: Number of head | R8: =I8 -> 600 | T8: =K8 -> 600 | V8: =M8 -> 600
G9: Investment for facility | P9: Investment for facility
G10: Construction Cost | I10: 360000 | K10: 900000 | M10: 975000 | P10: Total Construction Cost $ | R10: =I10 -> 360000 | T10: =K10 -> 900000 | V10: =M10 -> 975000
A11: Animal Type | C11: Beef | G11: Construction Cost per head | I11: =IF(I8<=0,"0",I10/I8) -> 600 | K11: =IF(K8<=0,"0",K10/K8) -> 1500 | M11: 1625 | P11: Estimated Tax & Insurance Annual $ | R11: =I12 -> 0 | T11: =K12 -> 0 | V11: 0
A12: Animal Weight | C12: 500 | G12: Insurance (per year) | I12: 0 | K12: 0 | M12: 0
A13: Animal Cost $/lb. | C13: 2.44 | G13: Land area required for facility (acres) | I13: 3 | K13: 0.97 | M13: 0.76
A14: Finished Weight | C14: 1350
A15: Finished Value $/lb. | C15: 2.35 | G15: Financing for facility | P15: Annual facility charges
G16: % Borrowed direct from lender | I16: 0 | K16: 0 | M16: 0 | P16: Principal payment per year | R16: =IF(I17<=0,"$0.00",PPMT(I18,1,I17,-(I8*I11-(I8*I20*I21))*I16)+PPMT(I24,1,I23,-(I8*I11-(I8*I20*I21))*I22)) -> 0 | T16: =IF(K17<=0,"$0.00",PPMT(K18,1,K17,-(K8*K11-(K8*K20*K21))*K16)+PPMT(K24,1,K23,-(K8*K11-(K8*K20*K21))*K22)) -> 0 | V16: 0 | Y16: Payment on principal for a given time *(interest rate, 1, note length (years), -(No of head x initial investment per head x % cost share)) x %borrowed direct from lender + payment on princ (interest rate % for loan, 1, note length years, - (no of head x initial investment per head -(no of head x % of investment cost share x % cost share)) x % of investment on low interest loan
A17: Ration Cost ($/ ton DM) | G17: Note Length (years) | I17: 20 | K17: 20 | M17: 20 | P17: Interest payment per year | R17: =IF(I17<=0,"$0.00",ISPMT(I18,1,I17,-((I8*I11)-(I8*I20*I21))*I16)+ISPMT(I24,1,I23,-((I8*I11)-(I8*I20*I21))*I22)) -> 0 | T17: =IF(K17<=0,"$0.00",ISPMT(K18,1,K17,-((K8*K11)-(K8*K20*K21))*K16)+ISPMT(K24,1,K23,-((K8*K11)-(K8*K20*K21))*K22)) -> 0 | V17: 0 | Y17: ISPMT - calculates the interest paid during a given period of an investment where principal payments are equal (interest rate, 1, note length, - (((no of head investment per head)-(no of headx % of invest cost shared x %cost share)) x %borrowed direct from lender ) + IPMT ( interest rate, 1, note length, - ((no of head x initial invest per head)-(no of head x % investment cost shared x % cost shared) x % of investment on low interest loan)
C18: 189 | G18: Interest Rate (%) | I18: 0.085 | K18: 0.085 | M18: 0.085 | P18: Owner equity needed | R18: =(I8*I11)*(1-I16-(I20*I21)-I22) -> 360000 | T18: =(K8*K11)*(1-K16-(K20*K21)-K22) -> 900000 | V18: =(M8*M11)*(1-M16-(M20*M21)-M22) -> 975000 | Y18: ( no of head x initial investment per head) x (1- % borrowed direct from lender - (% of investment financially assisted x % of financial assistance) - note length years for low interest loan
G19: Additional financial assistance or low interest loans | P19: Opportunity cost of owner equity | R19: =IF(I17<=0,"$0.00",ISPMT(I18,1,I17,-R18)) -> 29070 | T19: =IF(K17<=0,"$0.00",ISPMT(K18,1,K17,-T18)) -> 72675 | V19: 78731.25 | Y19: ISPMT - calculates the interest paid during one year of an investment where principal payments are equal ( interest rate, 1 note length years, -owner equity needed)
A20: Bedding Cost ($/ ton) | G20: % of Construction financially assistanced | I20: 0 | K20: 0 | M20: 0 | P20: Depreciation per year | R20: =IF(I27<=0,"$0.00",((I8*I11)-(I8*I11*I28))/I27) -> 18000 | T20: =IF(K27<=0,"$0.00",((K8*K11)-(K8*K11*K28))/K27) -> 45000 | V20: 48750 | Y20: (( no of head x initial investment per head ) - (no of head x initial investment per head x salvage value of facility % of original cost)) / depreciable years of life
C21: 23 | G21: % Financial Assistance | I21: 0 | K21: 0 | M21: 0 | P21: Principal and interest payment per head | R21: =(R16+R17)/( I8*I75) -> 0 | T21: =(T16+T17)/(K8*K75) -> 0 | V21: =(V16+V17)/(M8*M75) -> 0 | Y21: (principal payment per year + interest payment per year) / ( no of head x turns over the year)
G22: % of investment on low interest loan | I22: 0 | K22: 0 | M22: 0 | P22: Annual/hd depreciation, opportunity cost, and interest | R22: =(R17+R19+R20)/(I8*I75) -> 52.04894041 | T22: =(T17+T19+T20)/(K8*K75) -> 127.9354207 | V22: =(V17+V19+V20)/(M8*M75) -> 138.2095642 | Y22: (interest rate payment per year + opportunity cost of owner equity +depreciation per year)/(no of head x turns over the year)
G23: Note Length (years) for low interest loan | I23: 30 | K23: 30 | M23: 30 | P23: Annual land rental charge for facility | R23: =I13*I56 -> 0 | T23: =K13*K56 -> 0 | V23: =M13*M56 -> 0 | Y23: land area required for facility x rental rate per acre for land for facility
A24: Labor | G24: Interest Rate (%) for low interest loan | I24: 0.045 | K24: 0.045 | M24: 0.045
A25: Charge ($/hour) | C25: 23
G26: Depreciation or years of life
C27: % of Nutrient Available for Crop | G27: Depreciable years of life | I27: 20 | K27: 20 | M27: 20
A28: Nutrients | B28: $/lb. Nutrient | C28: Open Lot | D28: Bedded | E28: Slatted | G28: Salvage value of facility % of original cost | I28: 0 | K28: 0 | M28: 0
A29: N | B29: 0.64 | C29: 0.5 | D29: 0.5 | E29: 0.5
A30: P2O5 | B30: 0.71 | C30: 1 | D30: 1 | E30: 1 | G30: Performance and Health
A31: K2O | B31: 0.45 | C31: 1 | D31: 1 | E31: 1 | G31: Occupancy (%) | I31: 1 | K31: 1 | M31: 1
G32: Avg. Daily Gain | I32: 3.51 | K32: 3.57 | M32: 3.58
G33: Pounds DM Feed per Pound Gain | I33: 7 | K33: 6.75 | M33: 6.75 | P33: Manure quantity, nutrient concentration and value
G34: Feed intake lbs. DM per hd per day | I34: =I33*I32 -> 24.57 | K34: =K33*K32 -> 24.0975 | M34: 24.4 | P34: Manure (tons or gallons) total annual | R34: =I36*I8*I31 -> 1800 | T34: =K36*K8*K31 -> 3000 | V34: =M36*M8*M31 -> 900000
E35: Manure quantity, nutrient concentration and value | P35: Total manure value | R35: =IF(I36<100,((I38*I37*$D29*$B29)+(I39*I37*$D30*$B30)+(I40*I37*$D31*$B31)),((I38*(I37/1000)*$D29*$B29)+(I39*(I37/1000)*$D30*$B30)+(I40*(I37/1000)*$D31*$B31))) -> 40554 | T35: =IF(K36<100,((K38*K37*$D29*$B29)+(K39*K37*$D30*$B30)+(K40*K37*$D31*$B31)),((K38*(K37/1000)*$D29*$B29)+(K39*(K37/1000)*$D30*$B30)+(K40*(K37/1000)*$D31*$B31))) -> 59610 | V35: =IF(M36<100,((M38*M37*$E29*$B29)+(M39*M37*$E30*$B30)+(M40*M37*$E31*$B31)),((M38*(M37/1000)*$E29*$B29)+(M39*(M37/1000)*$E30*$B30)+(M40*(M37/1000)*$E31*$B31))) -> 43515
A36: Notes: | E36: Manure (tons or 1000 gallons) per head annual | I36: 3 | K36: 5 | M36: 1500 | P36: Manure application cost total | R36: =I51+(I47*$C$25)+IF(I60=0,I53+I52,(R64*((I60)/R59))+((I53)+(I52))) -> 0 | T36: =K51+(K47*$C$25)+IF(K60=0,K53+K52,(T64*((K60)/T59))+((K53)+(K52))) -> 0 | V36: =M51+(M47*$C$25)+IF(M60=0,M53+M52,(V64*((M60)/V59))+((M53)+(M52))) -> 0
E37: Manure (tons or gallons) total annual | I37: =I36*I8*I31 -> 1800 | K37: =K36*K8*K31 -> 3000 | M37: =M36*M8*M31 -> 900000 | P37: Manure application cost ton or per gallon | R37: =IF(R36<=0,"0",R36/R34) -> 0 | T37: =IF(T36<=0,"0",T36/T34) -> 0 | V37: 0 | Y37: Entered value - tons of manure per year
E38: - manure - Nitrogen lbs. per ton or 1000 gallon | I38: 15 | K38: 18 | M38: 45
E39: - manure - Phosphorus lbs. per ton or 1000 gallon | I39: 18 | K39: 11 | M39: 25 | Y39: Custom manure application charge per year+(Labor * manure application hours/per facility/year*Labor Rate Per hour)+(Annual payment additional feed storage*((equiipment purchase*0.75)/total investment for additional feed storage or equipment)+((equipment ownership/head/year*0.25)+(equipment operation head/year*0.2)*number of head))
E40: - manure - Potassium lbs. per ton or 1000 gallon | I40: 11 | K40: 14 | M40: 36 | Y40: manure total/ manure application cost
E42: Other non feed factors | P42: Other Non Feed Factors
E43: Bedding (Pounds / Head-Day) | I43: 10 | K43: 5 | M43: 0 | P43: Bedding (tons) annually | R43: =(I43*I8*365*I31)/2000 -> 1095 | T43: =(K43*K8*365*K31)/2000 -> 547.5 | V43: =(M43*M8*365*M31)/2000 -> 0
E44: Labor -processing, sorting, etc. (hours/group/turn) | I44: 10 | K44: 10 | M44: 10 | P44: Bedding cost annually | R44: =R43*$C21 -> 25185 | T44: =T43*$C21 -> 12592.5 | V44: =V43*$C21 -> 0
E45: Labor -daily care (hours/group/day) | I45: 0 | K45: 2.6 | M45: 2.6 | P45: Bedding cost per head space per year | R45: =R44/I8 -> 41.975 | T45: =T44/K8 -> 20.9875 | V45: =V44/M8 -> 0
E46: Labor - cleaning and bedding hours/group/week | I46: 0 | K46: =(K8/150)*1.1 -> 4.4 | M46: =(M8/150)*1.14 -> 4.56 | P46: Labor
E47: Labor - manure application hours/year | I47: 0 | K47: 0 | M47: 0 | P47: Total labor hours per turn per head | R47: =I48*I8*I75 -> 15.07235294 | T47: =K48*K8*K75 -> 1193.758571 | V47: =M48*M8*M75 -> 1202.14437
E48: Total labor hours per turn per head | I48: =(I44+(I45*I73)+(I46*(I73/7))+I47)/I8 -> 0.01666666667 | K48: =(K44+(K45*K73)+(K46*(K73/7))+K47)/K8 -> 1.297845805 | M48: =(M44+(M45*M73)+(M46*(M73/7))+M47)/M8 -> 1.303312051 | P48: Total labor hours per head space | R48: =R47/I8 -> 0.02512058824 | T48: =T47/K8 -> 1.989597619 | V48: =V47/M8 -> 2.00357395
E49: Maintenance for roads, diversions, etc. per year | I49: 0 | K49: 0 | M49: 0 | P49: Total labor hours per turn per head | R49: =(I44+(I45*I73)+(I46*(I73/7))+I47)/I8 -> 0.01666666667 | T49: =(K44+(K45*K73)+(K46*(K73/7))+K47)/K8 -> 1.297845805 | V49: =(M44+(M45*M73)+(M46*(M73/7))+M47)/M8 -> 1.303312051
E50: Maintenance for building(s) or pond per year | I50: 0 | K50: 0 | M50: 0 | P50: Total labor charge | R50: =R47*$C25 -> 346.6641176 | T50: =T47*$C25 -> 27456.44714 | V50: =V47*$C25 -> 27649.3205
E51: Custom manure application charge per year | I51: 0 | K51: 0 | M51: 0 | P51: Custom manure application charge | R51: =I51 -> 0 | T51: =K51 -> 0 | V51: =M51 -> 0
E52: Manure Equipment operation per year | I52: 0 | K52: 0 | M52: 0 | P52: Equipment usage for daily care/bedding cost total | R52: =(R47*$C$25)+IF(I61=0,I55+I54,(R64*((I61)/R59))+((I55)+(I54))) -> 346.6641176 | T52: =(T47*$C$25)+IF(K61=0,K55+K54,(T64*((K61)/T59))+((K55)+(K54))) -> 27456.44714 | V52: =(V47*$C$25)+IF(M61=0,M55+M54,(V64*((M61)/V59))+((M55)+(M54))) -> 27649.3205
E53: Manure Equipment ownership per year | I53: 0 | K53: 0 | M53: 0
E54: Equipment operation for daily care/bedding per year | I54: 0 | K54: 0 | M54: 0 | P54: Interest on feed and animal purchases
E55: Equipment ownership for daily care/bedding per year | I55: 0 | K55: 0 | M55: 0 | P55: Interest on feed | R55: =((($C18/2000)*(I33*($C14-$C12))*I8)*I70)*((I73/365)*0.5)*I75-IF(I79>0,I79*((($C18/2000)*(I33*($C14-$C12))*I8)*I70)*((I73/365)*0.5)*I75,0) -> 0 | T55: =((($C18/2000)*(K33*($C14-$C12))*K8)*K70)*((K73/365)*0.5)*K75-IF(K79>0,K79*((($C18/2000)*(K33*($C14-$C12))*K8)*K70)*((K73/365)*0.5)*K75,0) -> 8132.90625 | V55: =((($C18/2000)*(M33*($C14-$C12))*M8)*M70)*((M73/365)*0.5)*M75-IF(M79>0,M79*((($C18/2000)*(M33*($C14-$C12))*M8)*M70)*((M73/365)*0.5)*M75,0) -> 8132.90625
E56: Rental rate per acre for land for facility | I56: 0 | K56: 0 | M56: 0 | P56: Interest on cattle | R56: =(($C12*$C13)*I70*I8)*('Input and output'!I73/365*0.5)*I75-IF(I79>0,I79*(($C12*$C13)*I70*I8)*('Input and output'!I73/365*0.5),0)*I75 -> 0 | T56: =(($C12*$C13)*K70*K8)*('Input and output'!K73/365*0.5)*K75-IF(K79>0,K79*(($C12*$C13)*K70*K8)*('Input and output'!K73/365*0.5),0)*K75 -> 18300 | V56: =(($C12*$C13)*M70*M8)*('Input and output'!M73/365*0.5)*M75-IF(M79>0,M79*(($C12*$C13)*M70*M8)*('Input and output'!M73/365*0.5),0)*M75 -> 18300
E57: Other | I57: 0 | K57: 0 | M57: 0
E58: Investment for additional feed storage or equipment | P58: Investment for additional feed storage or equipment
E59: Feeding equipment (total $) | I59: 0 | K59: 0 | M59: 0 | P59: Total additional investment | R59: =SUM(I59:I63) -> 0 | T59: =SUM(K59:K63) -> 0 | V59: =SUM(M59:M63) -> 0 | Y59: sum of investment for additional feed storage or equipment
E60: Manure / Dirt Handling equipment (total $) | I60: 0 | K60: 0 | M60: 0 | P60: Additional taxes and insurance | R60: =(R59*I64)+(I63*I65) -> 0 | T60: =(T59*K64)+(K63*K65) -> 0 | V60: =(V59*M64)+(M63*M65) -> 0
E61: Bedding equipment. (total $) | I61: 0 | K61: 0 | M61: 0 | P61: Per head per year charge | R61: =IF(I70<=0,"$0.00",(PMT(I70,I69,-R59))/(I8*I75)) -> $0.00 | T61: =IF(K70<=0,"$0",(PMT(K70,K69,-T59))/(K8*K75)) -> 0 | V61: =IF(M70<=0,"$0",(PMT(M70,M69,-V59))/(M8*M75)) -> 0
E62: Cattle Handling equipment(total $) | I62: 0 | K62: 0 | M62: 0
E63: Feed storage total $ | I63: 0 | K63: 0 | M63: 0 | P63: Finance additional feed storage or equipment
E64: Insurance (% of original investment) | I64: 0 | K64: 0 | M64: 0 | P64: Annual payment | R64: =IF(I70<=0,"$0",PMT(I70,I69,-(R59*I68))) -> $0 | T64: =IF(K70<=0,"$0",PMT(K70,K69,-(T59*K68))) -> 0 | V64: =IF(M70<=0,"$0",PMT(M70,M69,-(V59*M68))) -> 0
E65: Tax on feed storage only (% of original investment) | I65: 0 | K65: 0 | M65: 0 | P65: Cash or owner equity | R65: =R59*(1-I68) -> 0 | T65: =T59*(1-K68) -> 0 | V65: =V59*(1-M68) -> 0
E67: Finance additional feed storage or equipment | P67: Cost per lb. of gain comparison
E68: % Borrowed Money $ | I68: 0 | K68: 0 | M68: 0 | P68: Total Cost ($ / lb. Gain) | R68: =R71+R70+R69 -> 0.7559485824 | T68: =T71+T70+T69 -> 0.8734225631 | V68: =V71+V70+V69 -> 0.869456822
E69: Note Length (years) | I69: 5 | K69: 5 | M69: 5 | P69: Feed Cost ($ / lb. Gain) | R69: =$C18/2000*I33 -> 0.6615 | T69: =$C18/2000*K33 -> 0.637875 | V69: =$C18/2000*M33 -> 0.637875
E70: Interest Rate (%) | I70: 0 | K70: 0.05 | M70: 0.05 | P70: Non feed variable cost ($/lb. gain | R70: =((I52*(I8*I75)+I48+R44+R50+R51+R55+R56)/(I8*I32*I73*I75)) -> 0.03321453484 | T70: =((K52*(K8*K75)+K48+T44+T50+T51+T55+T56)/(K8*K32*K73*K75)) -> 0.08503530338 | V70: =((M52*(M8*M75)+M48+V44+V50+V51+V55+V56)/(M8*M32*M73*M75)) -> 0.06898233472
P71: Non feed fixed cost ($/lb. gain | R71: =((I53*I8)+(R17+R19+R20+R60+R64+R11+R23))/(I8*I32*I73*I75) -> 0.06123404754 | T71: =((K53*K8)+(T17+T19+T20+T60+T64+T11+T23))/(K8*K32*K73*K75) -> 0.1505122597 | V71: =((M53*M8)+(V17+V19+V20+V60+V64+V11+V23))/(M8*M32*M73*M75) -> 0.1625994873
E72: Days on feed and turns per year | P72: Manure value ($/ lb. gain) | R72: =R35/I8/(I32*I74) -> 0.05275728837 | T72: =T35/K8/(K32*K74) -> 0.07624419631 | V72: =V35/M8/(M32*M74) -> 0.05550241065
E73: Days on Feed / turn | I73: =($C14-$C12)/I32 -> 242.1652422 | K73: =($C14-$C12)/K32 -> 238.0952381 | M73: =($C14-$C12)/M32 -> 237.4301676 | P73: Total Cost ($/lb. gain) with manure credit | R73: =R68-R72 -> 0.703191294 | T73: =T68-T72 -> 0.7971783668 | V73: =V68-V72 -> 0.8139544113
E74: Days facility full per year | I74: =365*I31 -> 365 | K74: =365*K31 -> 365 | M74: =365*M31 -> 365
E75: Turns (over year span) | I75: =I74/I73 -> 1.507235294 | K75: =K74/K73 -> 1.533 | M75: =M74/M73 -> 1.537294118 | P75: Breakeven comparison
E76: Custom feeding charge per head per day | P76: Breakeven finished price with manure credit | R76: =((($C14-$C12)*R73)+($C12*$C13))/(($C14)) -> 1.346453778 | T76: =((($C14-$C12)*T73)+($C12*$C13))/(($C14)) -> 1.405630824 | V76: =((($C14-$C12)*V73)+($C12*$C13))/(($C14)) -> 1.416193518
E77: Custom feeding charge per head per day | I77: 0 | K77: 0 | M77: 0 | P77: Breakeven finished price without manure credit | R77: =((($C14-$C12)*R68)+($C12*$C13))/(($C14)) -> 1.37967133 | T77: =((($C14-$C12)*T68)+($C12*$C13))/(($C14)) -> 1.453636429 | V77: =((($C14-$C12)*V68)+($C12*$C13))/(($C14)) -> 1.451139481
E78: Feed mark up per ton dry matter | I78: 0 | K78: 0 | M78: 0 | Y78: Yardage cost is the non-feed cost per head for every day that an animal is fed harvested feed in some form of confinement.
E79: % of capacity custom fed | I79: 0 | K79: 0 | M79: 0
A128: Ashley
A129: Beach
A130: Beulah
A131: Bismarck
A132: Bottineau
A133: Bowbells
A134: Bowman
A135: Cando
A136: Carrington
A137: Carson
A138: Cavalier
A139: Center
A140: Cooperstown
A141: Crosby
A142: Devils Lake
A143: Dickinson
A144: Ellendale
A145: Fargo
A146: Fessenden
A147: Finley
A148: Forman
A149: Fort Yates
A150: Garrison/Turtle Lake
A151: Grand Forks
A152: Hettinger
A153: Hillsboro
A154: Jamestown
A155: Killdeer
A156: La Moure
A157: Lakota
A158: Langdon
A159: Linton
A160: Lisbon
A161: Mandan
A162: McClusky
A163: Minnewaukan
A164: Minot
A165: Mohall
A166: Mott
A167: Napoleon
A168: New Rockford
A169: Park River
A170: Rolla
A171: Rugby
A172: Selfridge
A173: Stanley
A174: Steele
A175: Towner
A176: Valley City
A177: Wahpeton
A178: Watford City
A179: Williston

Sheet Income statement
I1: North Dakota
C2: NATURAL RESOURCES CONSERVATION SERVICE OPEN LOT VS CONFINEMENT BARN ECONOMIC ANALYSIS TOOL | I2: ='Input and output'!M2 -> 2023-10-12
I3: ='Input and output'!M3 -> Version 1.0
I4: Page 3 of 3
A5: Producer: | B5: =IF(Producer="","",Producer) -> 
A6: Legal Desc: | B6: =IF(Legal="","",Legal) -> 
A7: Field Office: | B7: =IF(FO="","",FO) -> 
B9: Annual Income Statement
B11: Gross Income | D11: ='Input and output'!I6 -> Open lot | F11: ='Input and output'!K6 -> Confinement | H11: ='Input and output'!M6 -> Confinement
D12: ='Input and output'!I7 -> Runoff Pond | F12: ='Input and output'!K7 -> Bedded | H12: ='Input and output'!M7 -> Slatted
B13: Gross Beef Income | D13: =(('Input and output'!$C14*'Input and output'!$C15)*('Input and output'!I8*'Input and output'!I75))-IF('Input and output'!I79>0,('Input and output'!I79*((('Input and output'!$C14*'Input and output'!$C15)*('Input and output'!I8*'Input and output'!I75))-('Input and output'!$C14*'Input and output'!$C15)*(('Input and output'!I8)*'Input and output'!I75))),0) -> 2869022.382 | F13: =(('Input and output'!$C14*'Input and output'!$C15)*('Input and output'!K8*'Input and output'!K75))-IF('Input and output'!K79>0,('Input and output'!K79*((('Input and output'!$C14*'Input and output'!$C15)*('Input and output'!K8*'Input and output'!K75))-('Input and output'!$C14*'Input and output'!$C15)*(('Input and output'!K8)*'Input and output'!K75))),0) -> 2918065.5 | H13: =(('Input and output'!$C14*'Input and output'!$C15)*('Input and output'!M8*'Input and output'!M75))-IF('Input and output'!M79>0,('Input and output'!M79*((('Input and output'!$C14*'Input and output'!$C15)*('Input and output'!M8*'Input and output'!M75))-('Input and output'!$C14*'Input and output'!$C15)*(('Input and output'!M8)*'Input and output'!M75))),0) -> 2926239.353
B14: Custom Feeding Income | D14: =('Input and output'!I77*'Input and output'!I79*'Input and output'!I8*'Input and output'!I74)+(('Input and output'!I34/2000*'Input and output'!I8*'Input and output'!I74)*'Input and output'!I78*'Input and output'!I79) -> 0 | F14: =('Input and output'!K77*'Input and output'!K79*'Input and output'!K8*'Input and output'!K74)+(('Input and output'!K34/2000*'Input and output'!K8*'Input and output'!K74)*'Input and output'!K78*'Input and output'!K79) -> 0 | H14: =('Input and output'!M77*'Input and output'!M79*'Input and output'!M8*'Input and output'!M74)+(('Input and output'!M34/2000*'Input and output'!M8*'Input and output'!M74)*'Input and output'!M78*'Input and output'!M79) -> 0
B15: Manure Value (one year period) | D15: ='Input and output'!R35 -> 40554 | F15: ='Input and output'!T35 -> 59610 | H15: ='Input and output'!V35 -> 43515
B16: Total Gross Income (one year period) | D16: =D13+D14+D15 -> 2909576.382 | F16: =F13+F14+F15 -> 2977675.5 | H16: 2969754.353
B19: Annual Costs
B20: Facility Interest and opportunity cost | D20: ='Input and output'!R17+'Input and output'!R19 -> 29070 | F20: ='Input and output'!T17+'Input and output'!T19 -> 72675 | H20: ='Input and output'!V17+'Input and output'!V19 -> 78731.25
B21: Facility Depreciation | D21: ='Input and output'!R20 -> 18000 | F21: ='Input and output'!T20 -> 45000 | H21: ='Input and output'!V20 -> 48750
B22: Facility Maintenance | D22: ='Input and output'!I49+'Input and output'!I50 -> 0 | F22: ='Input and output'!K49+'Input and output'!K50 -> 0 | H22: ='Input and output'!M49+'Input and output'!M50 -> 0
B23: Cattle Purchases | D23: =(('Input and output'!$C12*'Input and output'!$C13)*('Input and output'!I8*'Input and output'!I75))-(IF('Input and output'!I79>0,'Input and output'!I79*'Input and output'!$C12*'Input and output'!$C13*'Input and output'!I8*'Input and output'!I75,0)) -> 1103296.235 | F23: =(('Input and output'!$C12*'Input and output'!$C13)*('Input and output'!K8*'Input and output'!K75))-(IF('Input and output'!K79>0,'Input and output'!K79*'Input and output'!$C12*'Input and output'!$C13*'Input and output'!K8*'Input and output'!K75,0)) -> 1122156 | H23: =(('Input and output'!$C12*'Input and output'!$C13)*('Input and output'!M8*'Input and output'!M75))-(IF('Input and output'!M79>0,'Input and output'!M79*'Input and output'!$C12*'Input and output'!$C13*'Input and output'!M8*'Input and output'!M75,0)) -> 1125299.294
B24: ="Feed Cost " -> Feed Cost | D24: =(('Input and output'!$C18/2000*('Input and output'!I8*'Input and output'!I74))-IF('Input and output'!I79>0,('Input and output'!I79*('Input and output'!$C18/2000*('Input and output'!I8*'Input and output'!I74))),0)) -> 20695.5 | F24: =(('Input and output'!$C18/2000*('Input and output'!K8*'Input and output'!K74))-IF('Input and output'!K79>0,('Input and output'!K79*('Input and output'!$C18/2000*('Input and output'!K8*'Input and output'!K74))),0)) -> 20695.5 | H24: =(('Input and output'!$C18/2000*('Input and output'!M8*'Input and output'!M74))-IF('Input and output'!M79>0,('Input and output'!M79*('Input and output'!$C18/2000*('Input and output'!M8*'Input and output'!M74))),0)) -> 20695.5
B25: ="Labor Cost " -> Labor Cost | D25: ='Input and output'!R50 -> 346.6641176 | F25: ='Input and output'!T50 -> 27456.44714 | H25: ='Input and output'!V50 -> 27649.3205
B26: ="Bedding Cost " -> Bedding Cost | D26: ='Input and output'!R44 -> 25185 | F26: ='Input and output'!T44 -> 12592.5 | H26: ='Input and output'!V44 -> 0
B27: Vet med | D27: 0 | F27: 0 | H27: 0
B28: Equipment Costs care/bedding | D28: ='Input and output'!R52 -> 346.6641176 | F28: ='Input and output'!T52 -> 27456.44714 | H28: ='Input and output'!V52 -> 27649.3205
B29: Cattle and Feed interest | D29: ='Input and output'!R55+'Input and output'!R56-(IF('Input and output'!I79>0,('Input and output'!I79*('Input and output'!R55+'Input and output'!R56)),0)) -> 0 | F29: ='Input and output'!T55+'Input and output'!T56-(IF('Input and output'!K79>0,('Input and output'!K79*('Input and output'!T55+'Input and output'!T56)),0)) -> 26432.90625 | H29: ='Input and output'!V55+'Input and output'!V56-(IF('Input and output'!M79>0,('Input and output'!M79*('Input and output'!V55+'Input and output'!V56)),0)) -> 26432.90625 | L29: Orignal forumals were the following, removed trucking costs for custom feeding and
B30: Other variable costs | D30: ='Input and output'!R51-IF('Input and output'!I79>0,('Input and output'!I79*(('Input and output'!I8*'Input and output'!I75))),0) -> 0 | F30: =(('Input and output'!K52)*('Input and output'!K8*'Input and output'!K75))+'Input and output'!T51-IF('Input and output'!K79>0,('Input and output'!K79*(('Input and output'!K8*'Input and output'!K75))),0) -> 0 | H30: =(('Input and output'!M52)*('Input and output'!M8*'Input and output'!M75))+'Input and output'!V51-IF('Input and output'!M79>0,('Input and output'!M79*(('Input and output'!M8*'Input and output'!M75))),0) -> 0 | L30: ((equipment operation + trucking charges ) + animal number x turns per year)) + custom manure application cost -IF % of capacity cutom fed >0 then % capacity of custome fed x trucking charges x no of head x number of turns
B31: Other fixed costs | D31: ='Input and output'!R11+'Input and output'!R23+'Input and output'!R60+'Input and output'!R64+'Input and output'!I57 -> 0 | F31: ='Input and output'!T11+'Input and output'!T23+'Input and output'!T60+'Input and output'!T64+'Input and output'!K57 -> 0 | H31: ='Input and output'!V11+'Input and output'!V23+'Input and output'!V60+'Input and output'!V64+'Input and output'!M57 -> 0 | L31: tax and insurace + annual land rent + tax and insurance on additional feed storage or equipetment + (equipment ownership x head per year)
B32: Total Costs (one year period) | D32: =SUM(D20:D31) -> 1196940.064 | F32: =SUM(F20:F31) -> 1354464.801 | H32: =SUM(H20:H31) -> 1355207.591
B34: Net Return (with manure value) | D34: =D16-D32 -> 1712636.319 | F34: =F16-F32 -> 1623210.699 | H34: =H16-H32 -> 1614546.762
B36: Net Return (without manure) | D36: =(D13+D14)-D32 -> 1672082.319 | F36: =(F13+F14)-F32 -> 1563600.699 | H36: =(H13+H14)-H32 -> 1571031.762
B38: Return on equity | D38: =IF('Input and output'!R18=0,0,(D34/('Input and output'!R18+'Input and output'!R65))) -> 4.757323108 | F38: =IF('Input and output'!T18=0,0,(F34/('Input and output'!T18+'Input and output'!T65))) -> 1.803567444 | H38: =IF('Input and output'!V18=0,0,(H34/('Input and output'!V18+'Input and output'!V65))) -> 1.655945396
B39: Return on investment | D39: =(D34/('Input and output'!R10+'Input and output'!R59)) -> 4.757323108 | F39: =(F34/('Input and output'!T10+'Input and output'!T59)) -> 1.803567444 | H39: =(H34/('Input and output'!V10+'Input and output'!V59)) -> 1.655945396
B40: Assest turnover | D40: =D16/('Input and output'!R10+'Input and output'!R59) -> 8.082156618 | F40: =F16/('Input and output'!T10+'Input and output'!T59) -> 3.308528333 | H40: =H16/('Input and output'!V10+'Input and output'!V59) -> 3.0459019
B41: Investment per dollar of gross income | D41: =('Input and output'!R10+'Input and output'!R59)/D16 -> 0.1237293519 | F41: =('Input and output'!T10+'Input and output'!T59)/F16 -> 0.3022491873 | H41: =('Input and output'!V10+'Input and output'!V59)/H16 -> 0.3283099826
B42: $ Net return per dollar investment | D42: =IF(-D34>('Input and output'!R10+'Input and output'!R59),(1+((D34+D29/2+D20)/('Input and output'!R10+'Input and output'!R59))),((D34+D29/2+D20)/('Input and output'!R10+'Input and output'!R59))) -> 4.838073108 | F42: =IF(-F34>('Input and output'!T10+'Input and output'!T59),(1+((F34+F29/2+F20)/('Input and output'!T10+'Input and output'!T59))),((F34+F29/2+F20)/('Input and output'!T10+'Input and output'!T59))) -> 1.899002392 | H42: =IF(-H34>('Input and output'!V10+'Input and output'!V59),(1+((H34+H29/2+H20)/('Input and output'!V10+'Input and output'!V59))),((H34+H29/2+H20)/('Input and output'!V10+'Input and output'!V59))) -> 1.750250733

Sheet Feed Cost per Ton Calculation
K1: ='Input and output'!M1 -> North Dakota
E2: NATURAL RESOURCES CONSERVATION SERVICE OPEN LOT VS CONFINEMENT BARN ECONOMIC ANALYSIS TOOL | K2: ='Input and output'!M2 -> 2023-10-12
K3: ='Input and output'!M3 -> Version 1.0
C5: =IF(TRUE, "",'Input and output'!C5) -> 
B6: Producer: | C6: =IF(Producer="","",Producer) -> 
B7: Legal Desc: | C7: =IF(Legal="","",Legal) -> 
B8: Field Office: | C8: =IF(FO="","",FO) -> 
B9: Percent of Ration on Dry Matter (DM) basis
B10: Feedstuff | C10: Lbs. / unit | D10: Cost/unit | E10: DM % of feedstuff | F10: % of ration on DM basis | G10: % of ration on as fed | H10: lbs DM | I10: lbs as fed
B12: Corn | C12: 56 | D12: 5.3 | E12: 0.85 | F12: 0.58 | G12: =I12/I$22 -> 0.4797794118 | H12: =100*F12 -> 58 | I12: =H12/E12 -> 68.23529412 | J12: =I12*(D12/C12) -> 6.457983193
B13: Distillers | C13: 1500 | D13: 200 | E13: 0.5 | F13: 0.3 | G13: =I13/I$22 -> 0.421875 | H13: =100*F13 -> 30 | I13: =H13/E13 -> 60 | J13: =I13*(D13/C13) -> 8
B14: Hay | C14: 2000 | D14: 100 | E14: 0.85 | F14: 0.1 | G14: 0.08272058824 | H14: =100*F14 -> 10 | I14: =H14/E14 -> 11.76470588 | J14: =I14*(D14/C14) -> 0.5882352941
B15: Corn Silage | C15: 2000 | D15: 40 | E15: 0.4 | G15: 0 | H15: =100*F15 -> 0 | I15: =H15/E15 -> 0 | J15: =I15*(D15/C15) -> 0
B16: Supplement | C16: 100 | D16: 500 | E16: 0.9 | F16: 0.02 | G16: 0.015625 | H16: =100*F16 -> 2 | I16: =H16/E16 -> 2.222222222 | J16: =I16*(D16/C16) -> 11.11111111
B17: Haylage | D17: 80 | G17: 0
B18: Pasture | D18: 32 | G18: 0
G19: 0
G20: 0
G21: 0
F22: =SUM(F12:F21) -> 1 | G22: =SUM(G12:G21) -> 1 | H22: =SUM(H12:H16) -> 100 | I22: =SUM(I12:I16) -> 142.2222222 | J22: =SUM(J12:J16) -> 26.1573296
H24: Ration DM | I24: =H22/I22 -> 0.703125
G25: Ration cost /ton of DM | I25: =J22/100*2000 -> 523.146592
G26: Ration cost/ ton as fed | I26: =J22/I22*2000 -> 367.8374475
B28: Percentage of ration on As Fed basis
B29: Feedstuff | C29: Lbs. / unit | D29: Cost/unit | E29: DM % of feedstuff | F29: % of ration on DM basis | G29: % of ration on as fed | H29: lbs DM | I29: lbs as fed
B31: Corn | C31: 56 | D31: 4 | E31: 0.85 | F31: 0.4798 | G31: =I31/I$41 -> 0.5800331382 | H31: =100*F31 -> 47.98 | I31: =H31*E31 -> 40.783 | J31: =H31*(D31/C31) -> 3.427142857
B32: Wet distillers | C32: 2000 | D32: 75 | E32: 0.5 | F32: 0.4219 | G32: 0.3000220448 | H32: =100*F32 -> 42.19 | I32: =H32*E32 -> 21.095 | J32: =H32*(D32/C32) -> 1.582125
B33: Hay | C33: 2000 | D33: 125 | E33: 0.85 | F33: 0.0827 | G33: 0.099976533 | H33: 8.27 | I33: =H33*E33 -> 7.0295 | J33: =H33*(D33/C33) -> 0.516875
B34: Corn Silage | C34: 2000 | D34: 40 | E34: 0.4 | F34: 0 | G34: 0 | H34: 0 | I34: =H34*E34 -> 0 | J34: =H34*(D34/C34) -> 0
B35: Supplement | C35: 100 | D35: 25 | E35: 0.9 | F35: 0.0156 | G35: 0.01996828399 | H35: 1.56 | I35: =H35*E35 -> 1.404 | J35: =H35*(D35/C35) -> 0.39
B36: Haylage | D36: 80 | G36: 0
B37: Pasture | D37: 32 | G37: 0
G38: 0
G39: 0
G40: 0
F41: =SUM(F31:F40) -> 1 | G41: =SUM(G31:G40) -> 1 | H41: 100 | I41: =SUM(I31:I35) -> 70.3115 | J41: =SUM(J31:J35) -> 5.916142857
H43: Ration DM | I43: =I41/H41 -> 0.703115
G44: Ration cost /ton of DM | I44: =J41/I41*2000 -> 168.2837902
G45: Ration cost/ ton as fed | I45: =I44*I43 -> 118.3228571
